bitfinex/quotes_SOLUSD_20260302
["timestamp","ask_amount","ask_price","bid_price","bid_amount"]
[1772417836419,7.5,83.92,83.891,2.70690861]
[1772417836623,11.91355524,83.938,83.901,2.70690861]
[1772417837000,8.90963145,83.92,83.891,2.59507123]
[1772417837914,2.76601793,83.919,83.883,2.59507123]
[1772417838116,101.26521955,83.938,83.88,9.00963145]
[1772417838117,8.90963145,83.91,83.885,2.59507123]
[1772417838299,2.76601793,83.918,83.891,2.59507123]
[1772417838499,8.90963145,83.93,83.903,2.59507123]
[1772417838704,11.91426494,83.933,83.903,2.59507123]
[1772417839922,11.91364184,83.938,83.911,2.59507123]
[1772417840226,59.55566216,83.956,83.911,2.59507123]
[1772417840227,2.76601793,83.949,83.911,2.59507123]
[1772417840608,11.91213608,83.948,83.913,2.59507123]
[1772417841008,14.67815401,83.948,83.913,2.59507123]
[1772417841502,14.67815401,83.948,83.91,3.7402764]
[1772417841503,2.76601793,83.939,83.91,3.7402764]
[1772417841709,2.76601793,83.939,83.906,2.59507123]
[1772417842031,2.76601793,83.939,83.907,2.59507123]
[1772417842329,3.7402764,83.94,83.911,2.59507123]
[1772417842632,3.7402764,83.94,83.899,29.79761121]
[1772417842633,0.28432314,83.919,83.88,0.1]
[1772417842826,3.7402764,83.9,83.88,0.1]
[1772417843126,3.7402764,83.91,83.882,2.7894131]
[1772417844408,3.7402764,83.92,83.882,2.7894131]
[1772417844729,8.91149724,83.92,83.884,2.7894131]
[1772417844928,8.91149724,83.93,83.891,2.7894131]
[1772417845127,8.91149724,83.92,83.891,2.7894131]
[1772417845428,8.91149724,83.93,83.891,2.7894131]
[1772417846638,11.91483277,83.929,83.893,2.7894131]
[1772417847532,41.7019147,83.929,83.893,2.7894131]
[1772417848042,8.91149724,83.92,83.893,2.7894131]
[1772417848443,8.91149724,83.9,83.88,0.1]
[1772417848728,8.91149724,83.9,83.839,59.63740833]
[1772417848729,8.91149724,83.89,83.863,2.7894131]
[1772417849817,11.91909319,83.899,83.871,2.7894131]
[1772417850615,8.91149724,83.89,83.871,2.7894131]
[1772417851130,8.91149724,83.91,83.871,2.7894131]
[1772417851444,8.91149724,83.91,83.881,2.7894131]
[1772417853233,11.91767271,83.909,83.883,2.7894131]
[1772417853728,11.91639457,83.918,83.884,61.8]
[1772417853944,11.91639457,83.918,83.885,2.7894131]
[1772417854618,8.91149724,83.91,83.885,2.7894131]
[1772417855641,11.91767271,83.909,83.885,2.7894131]
[1772417855928,8.91149724,83.9,83.861,2.7894131]
[1772417856130,8.91149724,83.89,83.861,2.7894131]
[1772417856435,8.91149724,83.88,83.852,2.7894131]
[1772417857929,11.92193516,83.879,83.852,2.7894131]
[1772417858128,11.92193516,83.879,83.853,2.7894131]
[1772417858434,41.72677308,83.879,83.853,2.7894131]
[1772417858830,11.92193516,83.879,83.853,2.7894131]
[1772417859016,11.92193516,83.879,83.854,2.7894131]
[1772417859216,11.92193516,83.879,83.84,29.818495]
[1772417859217,8.91149724,83.92,83.871,2.7894131]
[1772417859419,8.91149724,83.93,83.891,2.7894131]
[1772417859725,8.91149724,83.93,83.901,2.7894131]
[1772417859932,20.82476862,83.94,83.901,2.7894131]
[1772417860132,20.82476862,83.94,83.911,2.7894131]
[1772417860517,3.69383402,83.978,83.911,2.7894131]
[1772417860830,8.91149724,83.97,83.941,2.7894131]
[1772417862334,8.91149724,83.95,83.882,2.7894131]
[1772417862532,8.91149724,83.92,83.891,2.7894131]
[1772417863241,8.91149724,83.91,83.891,2.7894131]
[1772417863916,8.91149724,83.91,83.881,2.7894131]
[1772417864344,20.82913625,83.91,83.883,2.7894131]
[1772417864537,11.91763901,83.91,83.883,2.7894131]
[1772417865340,11.91483277,83.929,83.891,2.7894131]
[1772417866328,8.91149724,83.92,83.891,2.7894131]
[1772417866635,8.91149724,83.91,83.891,2.7894131]
[1772417867017,8.91149724,83.93,83.893,2.7894131]
[1772417867646,8.91149724,83.92,83.893,2.7894131]
[1772417867846,8.91149724,83.93,83.893,2.7894131]
[1772417868827,11.91483277,83.929,83.895,2.7894131]
[1772417869344,8.91149724,83.92,83.895,2.7894131]
[1772417870324,8.91149724,83.91,83.895,2.7894131]
[1772417870524,8.91149724,83.91,83.886,2.7894131]
[1772417871342,8.91149724,83.92,83.886,2.7894131]
[1772417871852,11.9151167,83.927,83.891,2.7894131]
[1772417872425,11.9151167,83.927,83.887,11.92079821]
[1772417872426,11.9151167,83.927,83.901,2.7894131]
[1772417873233,11.9151167,83.927,83.887,41.72279375]
[1772417873234,59.54079957,83.977,83.921,2.7894131]
[1772417873423,11.91071726,83.958,83.931,2.7894131]
[1772417873922,41.68751041,83.958,83.931,2.7894131]
[1772417874334,11.91071726,83.958,83.931,2.7894131]
[1772417876150,11.91014039,83.963,83.933,2.7894131]
[1772417876454,38.42349856,83.959,83.933,2.7894131]
[1772417877432,26.51290996,83.959,83.921,2.7894131]
[1772417877752,38.42356713,83.959,83.931,2.7894131]
[1772417878259,38.42356713,83.959,83.933,2.7894131]
[1772417880037,11.91071726,83.958,83.933,2.7894131]
[1772417880230,41.68751041,83.958,83.917,11.91644679]
[1772417880536,8.91149724,83.93,83.891,2.7894131]
[1772417880737,0.28432314,83.949,83.911,2.7894131]
[1772417880934,8.91149724,83.93,83.911,2.7894131]
[1772417881341,11.91071726,83.958,83.921,2.7894131]
[1772417881532,8.91149724,83.94,83.921,2.7894131]
[1772417882649,8.91149724,83.94,83.901,2.7894131]
[1772417882839,11.91224581,83.948,83.911,2.7894131]
[1772417883036,8.91149724,83.94,83.911,2.7894131]
[1772417883846,11.91224581,83.948,83.911,2.7894131]
[1772417885248,26.51290996,83.959,83.941,2.7894131]
[1772417888039,8.91149724,83.98,83.951,2.7894131]
[1772417888242,8.91149724,83.99,83.961,2.7894131]
[1772417888864,8.91149724,83.98,83.961,2.7894131]
[1772417889229,8.91149724,83.97,83.946,2.7894131]
[1772417890332,11.90773883,83.979,83.95,8.91149724]
[1772417890534,11.90773883,83.979,83.951,2.7894131]
[1772417890734,38.67374294,84.0,83.971,2.7894131]
[1772417891243,38.67374294,84.0,83.97,8.91149724]
[1772417891244,11.90490362,83.999,83.973,2.7894131]
[1772417891554,11.90348653,84.009,83.981,2.7894131]
[1772417892054,0.2,84.01,83.981,2.7894131]
[1772417892452,0.2,84.01,83.991,2.7894131]
[1772417893249,11.90065334,84.029,83.992,11.90589579]
[1772417893442,11.90065334,84.029,83.993,2.73329057]
[1772417893837,11.90065334,84.029,84.001,2.73329057]
[1772417895461,8.91149724,84.02,83.991,2.73329057]
[1772417895860,11.68308708,84.01,83.979,2.73329057]
[1772417896241,8.91149724,84.0,83.969,2.73329057]
[1772417896439,8.89476822,84.0,83.969,2.73329057]
[1772417896659,11.66635806,84.0,83.969,2.73329057]
[1772417897379,8.89476822,83.99,83.959,2.77555238]
[1772417897746,8.89476822,83.98,83.949,2.77555238]
[1772417898376,8.89476822,83.98,83.95,2.77555238]
[1772417899673,8.89476822,83.97,83.941,2.77555238]
[1772417900867,8.89476822,83.96,83.932,2.77555238]
[1772417902274,8.89476822,83.99,83.951,2.77555238]
[1772417902658,8.89476822,83.98,83.951,2.77555238]
[1772417902855,11.90773883,83.979,83.951,2.77555238]
[1772417903873,2.69845676,83.989,83.953,2.77555238]
[1772417905376,11.90646282,83.988,83.961,2.77555238]
[1772417905763,8.89476822,84.0,83.971,2.77555238]
[1772417905968,11.90490362,83.999,83.971,2.77555238]
[1772417906450,8.89476822,83.99,83.971,2.77555238]
[1772417906655,8.89476822,83.99,83.961,2.77555238]
[1772417907271,41.67212372,83.989,83.961,2.77555238]
[1772417907871,11.90632106,83.989,83.963,2.77555238]
[1772417908080,41.67212372,83.989,83.963,2.77555238]
[1772417908447,11.90570461,83.994,83.963,2.77555238]
[1772417908781,8.89476822,84.0,83.971,2.77555238]
[1772417909077,8.89476822,84.01,83.981,2.77555238]
[1772417909575,11.90348653,84.009,83.981,2.77555238]
[1772417910265,11.90348653,84.009,83.983,2.77555238]
[1772417910954,14.60194329,84.009,83.983,2.77555238]
[1772417912082,11.90348653,84.009,83.983,2.77555238]
[1772417912967,2.69845676,84.008,83.975,2.77555238]
[1772417914774,41.66319472,84.007,83.975,2.77555238]
[1772417915365,44.36165148,84.007,83.975,2.77555238]
[1772417915567,2.69845676,84.006,83.975,2.77555238]
[1772417915966,8.89476822,84.0,83.975,2.77555238]
[1772417916552,2.69845676,83.999,83.967,2.77555238]
[1772417916759,8.89476822,84.0,83.951,2.77555238]
[1772417916760,2.69845676,83.979,83.951,2.77555238]
[1772417917252,44.37107665,83.988,83.952,2.77555238]
[1772417917455,44.37107665,83.988,83.96,11.6703206]
[1772417917689,44.37107665,83.988,83.961,2.77555238]
[1772417917857,11.90570617,83.994,83.961,2.77555238]
[1772417918058,11.90570617,83.994,83.971,2.77555238]
[1772417920788,11.90490362,83.999,83.971,2.77555238]
[1772417921085,11.90490362,83.999,83.972,2.77555238]
[1772417924180,2.69845676,83.998,83.972,2.77555238]
[1772417924987,2.69845676,83.998,83.951,29.779276]
[1772417924988,0.1742077,83.996,83.906,2.77555238]
[1772417925164,8.89476822,83.94,83.91,2.77555238]
[1772417925678,8.89476822,83.96,83.901,2.77555238]
[1772417925679,8.89476822,83.93,83.901,2.77555238]
[1772417925879,8.89476822,83.92,83.892,2.77555238]
[1772417926064,11.91625257,83.919,83.892,2.77555238]
[1772417926260,8.89476822,83.91,83.892,2.77555238]
[1772417926464,8.89476822,83.91,83.881,2.77555238]
[1772417928785,11.91767271,83.909,83.881,2.77555238]
[1772417929375,8.89476822,83.91,83.883,2.68239773]
[1772417929695,11.91625257,83.919,83.891,2.68239773]
[1772417932465,11.91625257,83.919,83.893,2.68239773]
[1772417932891,5.36086188,83.965,83.88,0.1]
[1772417932892,0.169461,83.963,83.911,2.68239773]
[1772417933089,0.169461,83.959,83.921,2.68239773]
[1772417933392,8.89476822,83.95,83.921,2.68239773]
[1772417933766,0.28432314,83.956,83.921,2.68239773]
[1772417934480,41.6885035,83.956,83.921,2.68239773]
[1772417934666,0.28432314,83.955,83.921,2.68239773]
[1772417934868,11.91057539,83.959,83.931,2.68239773]
[1772417937885,0.17005576,83.958,83.923,2.68239773]
[1772417938290,8.89476822,83.95,83.923,2.68239773]
[1772417939890,11.91199418,83.949,83.923,2.68239773]
[1772417940095,8.89476822,83.94,83.911,2.68239773]
[1772417940297,41.69197964,83.949,83.881,2.68239773]
[1772417940298,8.89476822,83.92,83.881,2.68239773]
[1772417940494,8.89476822,83.92,83.885,2.68239773]
[1772417940687,8.89476822,83.92,83.891,2.68239773]
[1772417941492,8.89476822,83.91,83.891,2.68239773]
[1772417941697,8.89476822,83.92,83.891,2.68239773]
[1772417942182,8.89476822,83.92,83.892,11.92008773]
[1772417942382,8.89476822,83.92,83.893,2.68239773]
[1772417942585,11.91625257,83.919,83.893,2.68239773]
[1772417942895,11.91553418,83.925,83.893,2.68239773]
[1772417943082,11.91483277,83.929,83.893,2.68239773]
[1772417943397,8.89476822,83.92,83.893,2.68239773]
[1772417943579,11.91483277,83.929,83.893,2.68239773]
[1772417943777,11.91483277,83.929,83.901,2.68239773]
[1772417944186,11.91483277,83.929,83.903,2.68239773]
[1772417946390,11.91483277,83.929,83.892,2.68239773]
[1772417946391,8.89476822,83.92,83.892,2.68239773]
[1772417946699,8.89476822,83.92,83.88,0.1]
[1772417946700,11.91483277,83.929,83.9,8.89476822]
[1772417946900,11.91483277,83.929,83.901,2.68239773]
[1772417947299,11.91411333,83.935,83.901,2.68239773]
[1772417947800,8.89476822,83.93,83.903,2.68239773]
[1772417949481,59.54636932,83.969,83.921,2.68239773]
[1772417949482,8.89476822,83.95,83.921,2.68239773]
[1772417949808,8.89476822,83.96,83.931,2.68239773]
[1772417951090,9.06621877,83.96,83.931,2.68239773]
[1772417951297,8.89476822,83.95,83.921,2.68239773]
[1772417951907,8.89476822,83.95,83.904,41.71434019]
[1772417951908,8.89476822,83.94,83.891,3.69383402]
[1772417952118,0.17154941,83.949,83.88,0.1]
[1772417952119,8.89476822,83.91,83.893,2.68239773]
[1772417952407,0.28432314,83.948,83.901,2.68239773]
[1772417952613,8.89476822,83.94,83.911,2.68239773]
[1772417952783,10.96586666,83.93,83.89,8.89476822]
[1772417952989,8.89476822,83.92,83.89,8.89476822]
[1772417953187,8.89476822,83.92,83.882,11.92150878]
[1772417953601,8.89476822,83.91,83.88,0.1]
[1772417954029,11.91767271,83.909,83.88,0.1]
[1772417954304,5.36086188,83.945,83.88,0.1]
[1772417954305,2.07119393,83.93,83.88,8.99476822]
[1772417954618,8.89476822,83.93,83.9,8.89476822]
[1772417954918,11.91341331,83.939,83.901,2.62096609]
[1772417956484,8.89476822,83.94,83.9,8.89476822]
[1772417956485,8.89476822,83.93,83.903,2.62096609]
[1772417957293,8.89476822,83.94,83.903,2.62096609]
[1772417957499,11.91241988,83.946,83.911,2.57605936]
[1772417957697,8.89476822,83.94,83.911,2.57605936]
[1772417958608,11.91341331,83.939,83.911,2.57605936]
[1772417959695,8.90655565,83.94,83.912,11.91724663]
[1772417959913,8.90655565,83.95,83.921,2.57605936]
[1772417960408,44.04440061,83.957,83.921,2.57605936]
[1772417960612,2.07207052,83.939,83.902,2.57605936]
[1772417960940,8.90655565,83.93,83.902,2.57605936]
[1772417961210,2.07207052,83.933,83.902,2.57605936]
[1772417961409,8.90655565,83.93,83.902,2.57605936]
[1772417961917,2.07247634,83.919,83.884,2.57605936]
[1772417962311,8.90655565,83.93,83.9,8.90655565]
[1772417962610,11.91341331,83.939,83.903,2.57605936]
[1772417962813,8.90655565,83.93,83.903,2.57605936]
[1772417963002,8.90655565,83.92,83.893,2.57605936]
[1772417964121,2.07287289,83.919,83.882,2.57605936]
[1772417964708,11.91639457,83.918,83.884,2.57605936]
[1772417964907,2.07306775,83.917,83.884,2.57605936]
[1772417965109,8.90655565,83.91,83.884,2.57605936]
[1772417965908,2.07306775,83.917,83.884,2.57605936]
[1772417965909,11.91639457,83.918,83.884,2.57605936]
[1772417966219,11.91639457,83.918,83.891,2.57605936]
[1772417966899,29.78573754,83.933,83.893,2.57605936]
[1772417966900,8.90655565,83.93,83.893,2.57605936]
[1772417967095,11.91536941,83.926,83.893,2.57605936]
[1772417967817,2.07363902,83.899,83.864,2.57605936]
[1772417968018,8.90655565,83.88,83.855,2.57605936]
[1772417968205,8.90655565,83.87,83.841,2.57605936]
[1772417968406,1.97363902,83.872,83.76,35.6262226]
[1772417968607,8.90655565,83.85,83.821,11.93007896]
[1772417968922,8.90655565,83.88,83.84,20.83394103]
[1772417969120,8.90655565,83.88,83.85,8.90655565]
[1772417970210,3.69383402,83.915,83.85,8.90655565]
[1772417970211,8.90655565,83.89,83.85,8.90655565]
[1772417970414,2.57180446,83.895,83.861,2.57605936]
[1772417971217,8.90655565,83.89,83.861,14.50050261]
[1772417972009,11.91980356,83.894,83.83,0.1]
[1772417972010,2.57180446,83.879,83.85,11.48261501]
[1772417972309,8.90655565,83.88,83.852,2.57605936]
[1772417973212,2.57180446,83.879,83.852,2.57605936]
[1772417973521,11.9220773,83.878,83.852,2.57605936]
[1772417973921,14.49388176,83.878,83.85,11.92604604]
[1772417974127,8.90655565,83.87,83.843,14.50307291]
[1772417974421,11.9220773,83.878,83.83,0.1]
[1772417974422,8.90655565,83.85,83.83,0.1]
[1772417975624,11.92620067,83.849,83.83,0.1]
[1772417975825,2.57180446,83.848,83.81,9.00655565]
[1772417976039,2.57180446,83.839,83.81,2.67605936]
[1772417976208,8.90655565,83.84,83.812,2.57605936]
[1772417977335,3.69383402,83.875,83.811,11.93160802]
[1772417977336,8.90655565,83.87,83.831,2.57605936]
[1772417977634,11.47836011,83.86,83.831,2.57605936]
[1772417978016,2.57180446,83.858,83.831,2.57605936]
[1772417978227,8.90655565,83.85,83.821,2.57605936]
[1772417978523,2.57180446,83.858,83.823,2.57605936]
[1772417979408,8.90655565,83.85,83.823,2.57605936]
[1772417979728,2.57180446,83.849,83.822,11.92995759]
[1772417979932,2.57180446,83.849,83.82,8.90655565]
[1772417980137,8.90655565,83.85,83.814,2.57605936]
[1772417980138,2.57180446,83.847,83.814,2.57605936]
[1772417980429,2.57180446,83.839,83.812,11.93139249]
[1772417980929,14.49814736,83.848,83.82,8.90655565]
[1772417981133,2.57180446,83.847,83.82,2.57605936]
[1772417981430,2.57180446,83.839,83.81,0.1]
[1772417981632,11.92553604,83.854,83.82,8.90655565]
[1772417981814,2.8561276,83.853,83.821,2.57605936]
[1772417982016,8.90655565,83.85,83.821,2.57605936]
[1772417982213,11.92620067,83.849,83.822,11.93004223]
[1772417982410,2.57180446,83.839,83.811,11.93160802]
[1772417982620,2.57180446,83.839,83.81,0.1]
[1772417983319,2.57180446,83.839,83.811,11.93160802]
[1772417983715,11.92620067,83.849,83.82,8.90655565]
[1772417983921,8.90655565,83.84,83.812,2.57605936]
[1772417984627,14.49800513,83.849,83.814,2.57605936]
[1772417984825,2.57180446,83.848,83.814,2.57605936]
[1772417985421,8.90655565,83.83,83.81,0.1]
[1772417985620,2.57180446,83.839,83.811,2.57605936]
[1772417986427,2.57180446,83.839,83.81,12.03163955]
[1772417986821,2.57180446,83.839,83.811,2.57605936]
[1772417987437,14.49953932,83.839,83.811,2.57605936]
[1772417987834,11.92667934,83.846,83.82,11.54315845]
[1772417988036,14.55840682,83.847,83.82,11.54315845]
[1772417988529,11.92676963,83.845,83.82,2.6366028]
[1772417988736,11.92676963,83.845,83.821,11.93018455]
[1772417988926,2.63192168,83.865,83.831,2.6366028]
[1772417989120,12.20839067,83.864,83.831,2.6366028]
[1772417989936,12.20839067,83.864,83.821,41.75564594]
[1772417989937,2.63192168,83.884,83.851,2.6366028]
[1772417990134,2.63192168,83.879,83.851,2.6366028]
[1772417990735,2.63192168,83.877,83.843,2.6366028]
[1772417991141,2.63192168,83.869,83.841,11.92733865]
[1772417991442,8.90655565,83.9,83.861,2.6366028]
[1772417991648,8.90655565,83.9,83.841,41.74568528]
[1772417991649,11.91767271,83.909,83.881,2.6366028]
[1772417992544,14.54959439,83.909,83.881,2.6366028]
[1772417992844,2.63192168,83.908,83.881,2.6366028]
[1772417993045,2.63192168,83.908,83.88,8.90655565]
[1772417993046,8.90655565,83.93,83.901,2.6366028]
[1772417993229,2.63192168,83.933,83.901,2.6366028]
[1772417993543,2.63192168,83.929,83.901,2.6366028]
[1772417995018,0.14216157,83.933,83.903,2.6366028]
[1772417995225,11.91421127,83.934,83.911,2.6366028]
[1772417995726,11.91421127,83.934,83.902,14.55526981]
[1772417996044,11.91421127,83.934,83.9,8.90655565]
[1772417996045,2.63192168,83.929,83.9,8.90655565]
[1772417996220,2.63192168,83.929,83.901,2.6366028]
[1772417996425,14.54533994,83.939,83.91,8.90655565]
[1772417996625,2.63192168,83.938,83.91,8.90655565]
[1772417997247,14.54561885,83.937,83.91,8.90655565]
[1772417998224,2.63192168,83.936,83.91,8.90655565]
[1772417999144,2.63192168,83.919,83.88,8.90655565]
[1772417999322,2.63192168,83.919,83.874,11.92264587]
[1772417999323,2.63192168,83.919,83.89,8.90655565]
[1772417999521,2.63192168,83.919,83.89,11.54315845]
[1772417999940,2.63192168,83.919,83.89,8.90655565]
[1772418000245,2.63192168,83.919,83.891,2.6366028]
[1772418000619,11.91432091,83.933,83.901,2.6366028]
[1772418000821,11.91432091,83.933,83.91,8.90655565]
[1772418001037,5.36086188,83.975,83.88,8.90655565]
[1772418001038,2.63192168,83.945,83.92,8.90655565]
[1772418001232,14.54462538,83.944,83.912,11.91724663]
[1772418001539,14.54462538,83.944,83.913,2.6366028]
[1772418002044,11.53847733,83.94,83.913,2.6366028]
[1772418002242,11.53847733,83.94,83.881,3.69383402]
[1772418002243,2.63192168,83.929,83.9,20.8254024]
[1772418002547,2.63192168,83.929,83.894,11.91975591]
[1772418002844,2.63192168,83.929,83.9,8.90655565]
[1772418003040,2.63192168,83.919,83.884,2.6366028]
[1772418003227,2.63192168,83.917,83.885,11.92108243]
[1772418003628,2.63192168,83.917,83.89,11.54315845]
[1772418004436,2.63192168,83.917,83.891,2.6366028]
[1772418005029,11.91568977,83.923,83.9,11.54315845]
[1772418005237,11.9151167,83.927,83.901,14.55541187]
[1772418005530,11.91383911,83.936,83.911,2.6366028]
[1772418006045,2.63192168,83.935,83.902,2.6366028]
[1772418006237,8.90655565,83.93,83.902,2.6366028]
[1772418006641,2.63192168,83.935,83.902,2.6366028]
[1772418006843,8.90655565,83.93,83.902,2.6366028]
[1772418007227,11.91483277,83.929,83.902,2.6366028]
[1772418007429,11.91483277,83.929,83.882,29.80367701]
[1772418007430,2.63192168,83.919,83.89,11.92034076]
[1772418007945,2.63192168,83.919,83.89,20.82689641]
[1772418009147,14.54824713,83.919,83.89,23.46349921]
[1772418009346,14.54824713,83.919,83.891,2.6366028]
[1772418009730,14.54824713,83.919,83.883,2.6366028]
[1772418009731,2.63192168,83.918,83.883,2.6366028]
[1772418009929,8.90655565,83.91,83.883,2.6366028]
[1772418010133,2.63192168,83.918,83.885,2.6366028]
[1772418010346,14.54742429,83.925,83.891,2.6366028]
[1772418010548,14.54742429,83.925,83.9,8.90655565]
[1772418011336,2.91624482,83.924,83.885,2.6366028]
[1772418011538,2.63192168,83.899,83.867,2.6366028]
[1772418011735,2.63192168,83.889,83.86,8.90655565]
[1772418012050,2.63192168,83.889,83.861,2.6366028]
[1772418013647,11.92065611,83.888,83.861,2.6366028]
[1772418013835,11.92065611,83.888,83.862,14.46821635]
[1772418014030,11.92065611,83.888,83.861,2.54386444]
[1772418014358,14.63856806,83.888,83.861,2.54386444]
[1772418016727,14.63856806,83.888,83.862,2.54386444]
[1772418016932,2.68,84.044,83.881,2.54386444]
[1772418016933,14.53569982,83.909,83.881,2.54386444]
[1772418017234,14.53569982,83.909,83.861,11.92445573]
[1772418017235,8.90655565,83.9,83.873,2.77821231]
[1772418017547,2.61802711,83.889,83.855,2.77821231]
[1772418017935,11.52458276,83.88,83.855,2.77821231]
[1772418018267,2.61802711,83.903,83.871,2.77821231]
[1772418018438,11.91767271,83.909,83.881,2.77821231]
[1772418018759,2.61802711,83.899,83.871,2.77821231]
[1772418018959,2.61802711,83.897,83.871,2.77821231]
[1772418019153,2.61802711,83.897,83.87,8.90655565]
[1772418019749,2.61802711,83.897,83.87,11.68476796]
[1772418020161,2.61802711,83.897,83.87,2.77821231]
[1772418020977,11.9195194,83.896,83.87,11.69366138]
[1772418022067,2.61802711,83.948,83.891,2.77821231]
[1772418022352,35.66179628,84.0,83.88,8.91544907]
[1772418022353,2.61802711,83.939,83.91,8.91544907]
[1772418022649,8.91544907,83.94,83.901,2.77821231]
[1772418022650,2.61802711,83.929,83.901,2.77821231]
[1772418023049,14.53300137,83.929,83.901,14.69695239]
[1772418023353,8.91544907,83.94,83.911,2.77821231]
[1772418023562,2.61802711,83.947,83.921,2.77821231]
[1772418023858,2.61802711,83.956,83.93,11.69366138]
[1772418024066,2.61802711,83.956,83.909,2.77821231]
[1772418024242,2.61802711,83.939,83.91,11.69366138]
[1772418025251,14.53158235,83.938,83.91,11.69366138]
[1772418025452,2.61802711,83.937,83.91,11.69366138]
[1772418025647,59.54660988,83.968,83.911,2.77821231]
[1772418025648,11.91294394,83.943,83.911,2.77821231]
[1772418025853,11.91223553,83.948,83.921,2.77821231]
[1772418026752,5.36086188,83.984,83.92,8.91544907]
[1772418026753,11.91028091,83.962,83.94,8.91544907]
[1772418026949,11.90972428,83.965,83.94,8.91544907]
[1772418027854,11.90972428,83.965,83.941,11.91312945]
[1772418028157,11.90972428,83.965,83.939,2.77821231]
[1772418028558,11.90972428,83.965,83.94,8.91544907]
[1772418028758,11.90972428,83.965,83.939,2.77821231]
[1772418029441,8.91544907,83.96,83.93,8.91544907]
[1772418029646,11.91213608,83.948,83.92,8.91544907]
[1772418029841,11.91213608,83.948,83.921,14.69418089]
[1772418030040,11.91213608,83.948,83.922,2.77821231]
[1772418030255,8.91544907,83.96,83.922,2.77821231]
[1772418030458,2.61802711,83.969,83.931,2.77821231]
[1772418030763,2.61802711,83.949,83.921,2.77821231]
[1772418031551,2.61802711,83.949,83.913,2.77821231]
[1772418032561,2.61802711,83.939,83.901,2.77821231]
[1772418032763,11.53347618,83.93,83.901,2.77821231]
[1772418033155,11.53347618,83.93,83.9,8.91544907]
[1772418033156,2.61802711,83.93,83.902,11.91866701]
[1772418033356,2.61802711,83.93,83.903,2.77821231]
[1772418033568,2.61802711,83.939,83.903,2.77821231]
[1772418033874,2.61802711,83.939,83.902,11.91866701]
[1772418033875,14.52809268,83.963,83.931,2.77821231]
[1772418034048,8.91544907,83.96,83.931,2.77821231]
[1772418034455,2.61802711,83.959,83.931,2.77821231]
[1772418035260,11.91071726,83.958,83.931,2.77821231]
[1772418035857,11.91012611,83.963,83.931,2.77821231]
[1772418036049,11.91012611,83.963,83.941,2.77821231]
[1772418037171,2.61802711,83.968,83.933,2.77821231]
[1772418038664,2.61802711,83.949,83.923,2.77821231]
[1772418039166,8.91544907,83.96,83.905,2.77821231]
[1772418039167,2.61802711,83.939,83.905,2.77821231]
[1772418039359,8.91544907,83.93,83.905,2.77821231]
[1772418040262,2.61802711,83.939,83.905,2.77821231]
[1772418040660,11.91355524,83.938,83.905,2.77821231]
[1772418040859,2.61802711,83.943,83.911,2.77821231]
[1772418041169,2.61802711,83.939,83.911,2.77821231]
[1772418042156,11.91355524,83.938,83.911,2.77821231]
[1772418042771,14.53158235,83.938,83.911,2.77821231]
[1772418042975,2.61802711,83.937,83.911,2.77821231]
[1772418044271,2.8,83.94,83.921,2.77821231]
[1772418046174,11.91341331,83.939,83.921,2.77821231]
[1772418046865,2.8,83.94,83.921,2.77821231]
[1772418047979,2.74976751,83.971,83.923,2.68384524]
[1772418048160,14.65892446,83.969,83.941,2.68384524]
[1772418048778,2.74976751,83.968,83.941,2.68384524]
[1772418049366,2.74976751,83.981,83.96,8.91544907]
[1772418049571,11.90632106,83.989,83.97,8.91544907]
[1772418049772,14.65608857,83.989,83.961,2.68384524]
[1772418049962,2.74976751,83.988,83.953,2.68384524]
[1772418050167,2.74976751,83.988,83.96,8.91544907]
[1772418050880,11.90632106,83.989,83.961,2.68384524]
[1772418051179,11.90632106,83.989,83.971,2.68384524]
[1772418051479,11.90572625,83.994,83.971,2.68384524]
[1772418051783,2.74976751,83.989,83.958,2.68384524]
[1772418053763,14.65623033,83.988,83.958,2.68384524]
[1772418054166,14.65623033,83.988,83.959,2.68384524]
[1772418054364,14.65623033,83.988,83.96,11.59929431]
[1772418055186,2.74976751,83.995,83.961,2.68384524]
[1772418055770,11.90490362,83.999,83.971,2.68384524]
[1772418056586,11.90490362,83.999,83.963,2.68384524]
[1772418056587,8.91544907,83.99,83.963,2.68384524]
[1772418056773,2.74976751,83.998,83.963,2.68384524]
[1772418059077,8.91544907,83.99,83.963,2.68384524]
[1772418059684,2.74976751,83.993,83.963,2.68384524]
[1772418060869,14.6556633,83.992,83.963,2.68384524]
[1772418061565,2.74976751,83.991,83.963,2.68384524]
[1772418061764,2.74976751,83.989,83.963,2.68384524]
[1772418062391,2.74976751,83.989,83.965,2.68384524]
[1772418062583,9.11544907,84.02,83.981,2.68384524]
[1772418062785,0.2,84.02,84.0,11.9047619]
[1772418063274,11.90145746,84.024,84.0,20.82021097]
[1772418063591,1.01870552,84.047,84.01,8.91544907]
[1772418063800,1.01870552,84.047,84.03,8.91544907]
[1772418065086,1.01870552,84.047,84.03,11.59929431]
[1772418065292,0.2,84.05,84.04,8.91544907]
[1772418065474,0.2,84.05,84.032,2.68384524]
[1772418066476,0.2,84.05,84.033,11.90008687]
[1772418066694,0.2,84.05,84.034,2.68384524]
[1772418066991,0.2,84.05,84.04,8.91544907]